bitfinex-derivatives/quotes_ETHF0:USTF0_20260115
["timestamp","ask_amount","ask_price","bid_price","bid_amount"]
[1768484400809,0.90087534,3366.3,3365.5,0.14238432]
[1768484400998,0.90087534,3366.2,3365.5,0.14238432]
[1768484401194,0.90087534,3366.1,3365.6,0.14238432]
[1768484401389,0.00445884,3366.4,3365.6,0.14238432]
[1768484401590,0.90083798,3366.3,3365.6,0.14238432]
[1768484401795,0.90083798,3366.2,3365.6,0.14238432]
[1768484401989,0.90083798,3366.1,3365.6,0.14238432]
[1768484402194,1.17804609,3365.7,3365.1,0.14238432]
[1768484402399,0.14858,3366.2,3364.9,0.00297259]
[1768484402595,1.17804609,3365.6,3364.9,0.00297259]
[1768484402791,1.17804609,3365.8,3364.9,0.00297259]
[1768484402993,0.14858,3366.2,3365.4,1.17804609]
[1768484403201,0.00771644,3366.4,3365.4,1.17804609]
[1768484403499,0.00771644,3366.4,3365.2,1.17804609]
[1768484403712,0.00771644,3366.4,3365.0,1.17804609]
[1768484404494,0.00771644,3366.4,3365.3,1.17804609]
[1768484405002,0.00771644,3366.4,3365.5,1.17804609]
[1768484405196,0.00771644,3366.4,3365.9,1.17804609]
[1768484405500,0.14855,3366.7,3365.2,0.14238432]
[1768484405893,2.26656115,3367.2,3365.2,0.14238432]
[1768484406098,1.241,3367.1,3365.2,0.14238432]
[1768484406294,1.24350423,3367.1,3365.2,0.14238432]
[1768484406497,0.00445884,3366.5,3365.2,0.14238432]
[1768484407105,0.00445884,3366.5,3365.4,0.14861]
[1768484407306,0.00250423,3367.1,3365.5,0.14238432]
[1768484408308,0.00445884,3366.6,3365.5,0.14238432]
[1768484408810,0.00250423,3367.1,3366.0,0.14238432]
[1768484409116,2.972,3368.3,3366.6,0.14238432]
[1768484409410,1.24,3368.9,3366.8,0.14238432]
[1768484409814,0.00445884,3368.2,3367.5,0.00445884]
[1768484410017,0.00445884,3368.2,3367.5,0.00699457]
[1768484414714,0.00445884,3368.2,3366.8,0.14238432]
[1768484415716,0.00445884,3368.2,3366.8,0.14460985]
[1768484416615,0.13865684,3368.2,3366.8,0.00222553]
[1768484417816,0.00445884,3368.2,3366.8,0.14460985]
[1768484421611,0.19022587,3367.3,3365.3,0.14861]
[1768484421917,0.19022587,3367.1,3365.3,0.14861]
[1768484422214,2.971,3367.0,3365.3,0.14861]
[1768484422410,0.19022587,3367.1,3365.3,0.14861]
[1768484422713,0.00445884,3366.5,3365.9,0.00445884]
[1768484422919,0.0073642,3366.5,3365.9,0.00445884]
[1768484426021,0.14851,3367.6,3365.9,0.00445884]
[1768484426222,4.21,3367.5,3365.9,0.00445884]
[1768484426517,0.14851,3367.6,3365.9,0.20610364]
[1768484426729,1.38751,3367.6,3365.9,0.20610364]
[1768484427107,0.00445884,3367.1,3365.9,0.20610364]
[1768484427718,0.00445884,3367.1,3365.9,0.00445884]
[1768484428223,1.24345884,3367.1,3365.9,0.00445884]
[1768484429818,0.00445884,3367.1,3365.9,0.20610364]
[1768484433423,0.00445884,3367.1,3366.1,0.3502248]
[1768484434221,0.00250757,3367.6,3366.3,0.3502148]
[1768484434423,0.00250757,3367.6,3366.4,0.2016448]
[1768484435323,0.00445884,3367.3,3366.4,0.2016448]
[1768484455437,0.00445884,3367.3,3366.0,0.29861283]
[1768484455636,0.00445884,3367.3,3365.9,0.00445884]
[1768484456827,0.00445884,3367.3,3366.0,1.62398237]
[1768484461452,0.00445884,3367.3,3366.1,0.29861283]
[1768484462443,0.00250757,3367.6,3366.5,0.29861283]
[1768484464346,0.00250757,3367.6,3366.8,1.17678954]
[1768484464551,1.5348744,3368.1,3366.8,1.17678954]
[1768484464852,0.89379551,3368.0,3366.8,1.17678954]
[1768484465046,0.89379551,3367.9,3366.5,0.44717283]
[1768484465352,0.89379551,3367.8,3366.5,0.44717283]
[1768484465552,0.89379551,3367.7,3366.5,0.44717283]
[1768484465754,0.00275119,3367.8,3366.5,0.44717283]
[1768484465965,0.89369995,3367.7,3366.5,0.44717283]
[1768484466161,0.00275119,3367.8,3366.5,0.44717283]
[1768484466358,0.89369343,3367.7,3366.5,0.44717283]
[1768484466656,0.00275119,3367.8,3366.5,0.44717283]
[1768484466857,0.89376194,3367.7,3366.5,0.44717283]
[1768484467057,0.00275119,3367.8,3366.5,0.44717283]
[1768484467257,0.89376429,3367.7,3366.5,0.44717283]
[1768484467448,0.00275119,3367.8,3366.6,0.29861283]
[1768484469956,0.00445884,3367.5,3366.6,0.29861283]
[1768484471759,0.00445884,3367.5,3366.6,0.44717283]
[1768484471956,0.00445884,3367.5,3366.0,1.17678954]
[1768484471957,2.11435205,3368.9,3366.9,0.29861283]
[1768484472162,2.13056413,3368.4,3366.9,0.29861283]
[1768484472459,0.89356413,3368.3,3367.0,0.29861283]
[1768484472657,0.89356413,3368.2,3367.0,0.29861283]
[1768484472857,0.89334181,3368.1,3367.0,0.29861283]
[1768484473058,0.00267952,3368.1,3367.0,0.29861283]
[1768484473358,0.00267952,3368.1,3367.2,1.17678954]
[1768484474051,0.00267952,3368.1,3367.0,0.29861283]
[1768484474250,0.2978744,3367.9,3366.3,0.44718283]
[1768484474450,0.8930985,3367.8,3366.3,0.44718283]
[1768484474654,0.00267952,3368.1,3366.9,1.17678954]
[1768484474862,0.89318048,3368.0,3366.9,1.17678954]
[1768484475062,0.00267952,3368.1,3366.9,1.17678954]
[1768484475247,0.8931443,3368.0,3366.6,0.44717283]
[1768484475452,0.00267952,3368.1,3366.6,0.44717283]
[1768484475657,0.8931206,3368.0,3366.6,0.44717283]
[1768484475862,0.00267952,3368.1,3366.6,0.44717283]
[1768484476163,0.89311592,3368.0,3366.7,0.29861283]
[1768484476459,0.00267952,3368.1,3366.6,0.14856]
[1768484476761,0.89305181,3368.0,3366.6,0.14856]
[1768484477064,0.30055392,3368.1,3366.6,0.14856]
[1768484477256,0.8930391,3368.0,3366.6,0.14856]
[1768484477457,0.30055392,3368.1,3366.6,0.14856]
[1768484477655,0.89298955,3368.0,3366.6,0.14856]
[1768484477851,0.30055392,3368.1,3366.6,0.14856]
[1768484478058,0.89299091,3368.0,3366.6,0.14856]
[1768484478261,0.30055392,3368.1,3366.6,0.14856]
[1768484478461,0.89297015,3368.0,3366.6,0.14856]
[1768484478657,1.53655392,3368.1,3366.6,0.14856]
[1768484478965,0.89296367,3368.0,3366.6,0.14856]
[1768484479171,1.53655392,3368.1,3366.6,0.14856]
[1768484479460,0.89293221,3368.0,3366.6,0.14856]
[1768484479765,1.53655392,3368.1,3366.6,0.14856]
[1768484479961,0.89294772,3368.0,3366.6,0.14856]
[1768484480163,1.53655392,3368.1,3366.6,0.14856]
[1768484480366,0.89291839,3368.0,3366.6,0.14856]
[1768484480666,1.53655392,3368.1,3366.6,0.14856]
[1768484480866,0.89294703,3368.0,3366.6,0.14856]
[1768484481063,1.53655392,3368.1,3366.6,0.14856]
[1768484481254,0.89302573,3368.0,3366.6,0.14856]
[1768484481456,1.53655392,3368.1,3366.6,0.14856]
[1768484481656,0.89309502,3368.0,3366.6,0.14856]
[1768484481855,1.53655392,3368.1,3366.6,0.14856]
[1768484482150,0.89310697,3368.0,3366.6,0.14856]
[1768484482357,1.53655392,3368.1,3366.6,0.14856]
[1768484482554,0.89320796,3368.0,3366.6,0.14856]
[1768484482754,1.53655392,3368.1,3366.6,0.14856]
[1768484482956,0.8932371,3368.0,3366.6,0.14856]
[1768484483155,1.53655392,3368.1,3366.6,0.14856]
[1768484483366,0.89334313,3368.0,3366.8,1.17674454]
[1768484483665,1.53655392,3368.1,3366.8,1.17674454]
[1768484483864,0.89336128,3368.0,3366.8,1.17674454]
[1768484484060,1.53655392,3368.1,3366.8,1.17674454]
[1768484484250,0.89249889,3368.0,3366.8,1.17674454]
[1768484484452,1.53655392,3368.1,3366.8,1.17674454]
[1768484484653,0.89249473,3368.0,3366.8,1.17674454]
[1768484484854,1.53655392,3368.1,3366.8,1.17674454]
[1768484485052,0.89249631,3368.0,3366.8,1.17674454]
[1768484485255,1.53655392,3368.1,3366.8,1.17674454]
[1768484485456,0.89250246,3368.0,3366.8,1.17674454]
[1768484485659,1.53655392,3368.1,3366.8,1.17674454]
[1768484485867,0.8925027,3368.0,3366.8,1.17674454]
[1768484486164,0.30055392,3368.1,3366.8,1.17674454]
[1768484486370,2.12857175,3368.0,3366.8,1.17674454]
[1768484486572,1.236,3368.0,3366.8,1.17674454]
[1768484487975,0.30055392,3368.1,3366.8,1.17674454]
[1768484488176,0.89267997,3368.0,3366.8,1.17674454]
[1768484488486,1.53655392,3368.1,3366.8,1.17674454]
[1768484488674,0.89280469,3368.0,3366.8,1.17674454]
[1768484488874,1.53655392,3368.1,3366.8,1.17674454]
[1768484489077,0.89280071,3368.0,3366.8,1.17674454]
[1768484489375,0.89292886,3367.9,3366.8,1.17674454]
[1768484489575,1.53655392,3368.1,3366.8,1.17674454]
[1768484489777,0.892929,3368.0,3366.8,1.17674454]
[1768484489977,0.892929,3367.9,3366.8,1.17674454]
[1768484490276,0.00267952,3368.1,3366.7,0.14855]
[1768484490473,0.00267952,3368.1,3367.6,1.17674454]
[1768484490672,0.40255101,3368.5,3367.6,1.17674454]
[1768484490673,0.00445884,3368.2,3367.6,1.17674454]
[1768484491076,0.00445884,3368.2,3367.6,1.18120338]
[1768484491577,0.00757924,3368.2,3367.6,1.18120338]
[1768484492168,0.00757924,3368.2,3367.6,0.00445884]
[1768484494074,1.235,3368.5,3367.6,0.00445884]
[1768484494281,0.89324378,3368.4,3367.6,0.00445884]
[1768484494470,0.89324378,3368.3,3367.6,0.00445884]
[1768484494674,1.235,3368.5,3367.6,0.00445884]
[1768484494871,0.89323023,3368.4,3367.6,0.00445884]
[1768484495074,0.89323023,3368.3,3367.6,0.00445884]
[1768484495277,0.00218417,3368.4,3367.6,0.00445884]
[1768484495579,0.89316149,3368.3,3367.6,0.00445884]
[1768484495770,0.00218417,3368.4,3367.6,0.00445884]
[1768484495966,0.89316122,3368.3,3367.6,0.00445884]
[1768484496176,0.00218417,3368.4,3367.6,0.00445884]
[1768484496372,0.89298775,3368.3,3367.6,0.00445884]
[1768484496572,0.00218417,3368.4,3367.6,0.00445884]
[1768484496772,0.89288529,3368.3,3367.6,0.00445884]
[1768484496972,1.23718417,3368.4,3367.6,0.00445884]
[1768484497183,0.89288726,3368.3,3367.6,0.00445884]
[1768484497376,1.23718417,3368.4,3367.6,0.00445884]
[1768484497582,0.89286116,3368.3,3367.6,0.00445884]
[1768484497879,1.23718417,3368.4,3367.6,0.00445884]
[1768484498079,0.89286089,3368.3,3367.6,0.00445884]
[1768484498281,1.23718417,3368.4,3367.6,0.00445884]
[1768484498576,0.89281661,3368.3,3367.6,0.00445884]
[1768484498880,1.23718417,3368.4,3367.6,0.00445884]
[1768484499272,0.00218417,3368.4,3367.7,1.17674454]
[1768484499471,0.00218417,3368.4,3367.7,1.17883879]
[1768484503498,0.00218417,3368.4,3367.7,0.00209425]
[1768484503675,0.00218417,3368.4,3367.7,1.17883879]
[1768484506087,0.00218417,3368.4,3367.7,0.00209425]
[1768484511491,1.17674454,3368.3,3367.7,0.00209425]
[1768484512392,0.42909785,3368.4,3367.7,0.00209425]
[1768484512886,0.42691368,3368.0,3366.4,0.45632385]
[1768484513186,0.42691368,3368.0,3366.7,1.17674454]
[1768484513386,0.42691368,3368.0,3366.5,0.14856]
[1768484513586,1.17674454,3367.3,3366.1,4.88719869]
[1768484513892,1.235,3367.4,3366.3,1.17674454]
[1768484514089,1.235,3367.4,3366.5,1.17674454]
[1768484514290,0.00445884,3367.2,3366.8,1.17674454]
[1768484514485,0.42691368,3368.2,3367.1,1.17674454]
[1768484514486,1.235,3367.8,3367.1,1.17674454]
[1768484515694,0.42691368,3368.2,3367.1,1.17674454]
[1768484515695,1.235,3367.9,3367.1,1.17674454]
[1768484515885,0.89149076,3367.8,3367.1,1.17674454]
[1768484516085,1.235,3367.9,3367.1,1.17674454]
[1768484516490,1.235,3368.0,3367.3,1.17674454]
[1768484516794,1.235,3368.0,3366.7,0.45632385]
[1768484516795,1.235,3368.0,3367.1,1.17674454]
[1768484517394,1.235,3368.0,3366.6,0.14856]
[1768484517597,2.06843306,3367.9,3366.5,1.18120338]
[1768484517893,1.17674454,3367.9,3366.5,1.18120338]
[1768484518594,1.60365822,3367.9,3366.5,0.00445884]
[1768484518786,1.60365822,3367.9,3366.5,1.18120338]
[1768484520198,0.42691368,3367.8,3366.5,1.18120338]
[1768484520399,1.17674454,3367.7,3366.5,0.00445884]
[1768484521601,1.17674454,3367.7,3366.5,1.18120338]
[1768484521901,1.17674454,3367.5,3366.5,0.00445884]
[1768484522596,1.60365822,3366.9,3366.1,0.00337329]
[1768484522799,1.17674454,3366.7,3366.1,0.00337329]
[1768484523000,1.17674454,3366.5,3365.1,1.17674454]
[1768484523498,0.42691368,3366.8,3365.1,1.17674454]
[1768484523699,1.60365822,3366.6,3365.3,1.17674454]
[1768484524006,0.00445884,3366.3,3365.6,0.00445884]
[1768484525788,0.14854,3367.0,3365.9,1.17674454]
[1768484525983,1.234,3366.9,3365.9,1.17674454]
[1768484527797,1.234,3366.9,3365.7,1.17674454]
[1768484528310,0.57543368,3367.6,3366.4,1.17674454]
[1768484528597,1.235,3367.5,3366.4,1.17674454]
[1768484528893,1.235,3367.5,3365.6,0.15305884]
[1768484528894,0.42691368,3367.6,3366.8,1.17674454]
[1768484529097,2.66545394,3368.8,3366.0,1.63306839]
[1768484529098,1.235,3367.5,3366.6,1.17674454]
[1768484531093,1.235,3367.5,3366.4,1.17674454]
[1768484532303,1.17674454,3367.9,3366.6,1.17674454]
[1768484532505,1.235,3367.8,3366.6,1.17674454]
[1768484532900,0.42691368,3368.1,3367.0,1.17674454]
[1768484533112,0.42691368,3368.5,3367.3,1.17674454]
[1768484533408,2.12273254,3368.3,3367.3,1.17674454]
[1768484533607,1.235,3368.3,3367.5,0.00445884]
[1768484534010,1.235,3368.2,3367.5,0.00445884]
[1768484534507,0.42691368,3368.5,3367.5,0.00445884]
[1768484534696,1.235,3368.3,3367.5,1.18120338]
[1768484535202,0.42691368,3368.5,3367.5,1.18120338]
[1768484535401,1.235,3368.3,3367.5,1.18120338]
[1768484535601,1.235,3368.3,3367.5,0.00445884]
[1768484543811,0.00218417,3368.4,3367.5,0.00445884]
[1768484549531,0.49447183,3369.3,3367.9,1.17654176]
[1768484549729,1.234,3369.2,3367.9,1.17654176]
[1768484550521,1.23699508,3369.2,3367.9,1.17995604]
[1768484551629,0.00299508,3369.2,3367.9,1.64629412]
[1768484555736,0.00299508,3369.2,3368.0,0.46633808]
[1768484555925,0.00299508,3369.2,3368.3,1.17654176]
[1768484557023,2.11435205,3370.6,3368.3,1.17654176]
[1768484557327,0.49447183,3370.8,3369.1,1.17654176]
[1768484557527,0.88869287,3370.7,3369.1,1.17654176]
[1768484557725,0.49447183,3371.5,3369.6,1.18099392]
[1768484557926,0.49447183,3371.3,3370.0,1.17654176]
[1768484558125,0.0031876,3371.3,3370.0,1.17654176]
[1768484558326,0.0031876,3371.3,3369.8,0.61475808]
[1768484558533,0.0031876,3371.3,3369.9,1.64287984]
[1768484558730,0.0031876,3371.3,3370.0,0.46633808]
[1768484559228,0.64278183,3372.2,3370.4,1.64287984]
[1768484559430,0.64278183,3372.2,3370.4,0.46633808]
[1768484559630,1.87578183,3372.2,3370.4,0.46633808]
[1768484559829,0.49447183,3372.1,3370.4,0.46633808]
[1768484560429,0.49821342,3372.1,3370.4,0.46906384]
[1768484561330,0.49821342,3372.1,3370.4,0.00272576]
[1768484562237,0.49447183,3372.0,3370.4,0.00272576]
[1768484573252,0.00374159,3372.1,3370.9,0.50620312]
[1768484573937,0.00374159,3372.1,3371.0,0.50620312]
[1768484574147,0.00374159,3372.1,3371.1,0.50620312]
[1768484574336,0.52518587,3372.9,3371.1,0.50620312]
[1768484574752,0.52518587,3372.9,3371.7,0.00445216]
[1768484575448,0.00362436,3372.9,3371.7,0.00445216]
[1768484576549,0.00362436,3372.9,3371.7,0.65898528]
[1768484576741,0.52518587,3373.8,3371.8,0.50620312]
[1768484577742,0.52756039,3373.8,3371.8,0.50620312]
[1768484578140,0.00237452,3373.8,3372.2,0.50620312]
[1768484578448,0.52518587,3374.5,3371.9,0.14832]
[1768484578754,0.52518587,3374.4,3372.2,0.50620312]
[1768484579447,0.52799781,3374.4,3372.2,0.50620312]
[1768484580452,0.52518587,3374.1,3371.7,0.51065528]
[1768484580642,0.52518587,3373.9,3371.7,0.51065528]
[1768484580848,0.52518587,3373.8,3371.7,0.51065528]
[1768484581549,0.00281194,3374.4,3372.3,0.50620312]
[1768484582551,0.00281194,3374.4,3372.4,0.50620312]
[1768484583352,0.88471679,3374.3,3372.4,0.50620312]
[1768484583554,0.00281194,3374.4,3372.4,0.65450312]
[1768484583760,0.00281194,3374.4,3372.5,0.50620312]
[1768484585456,0.88558701,3374.3,3372.5,0.50620312]
[1768484585657,0.00281194,3374.4,3372.5,0.50620312]
[1768484585848,0.88558628,3374.3,3372.5,0.50620312]
[1768484586048,0.00281194,3374.4,3372.5,0.50620312]
[1768484586258,0.88558614,3374.3,3372.5,0.50620312]
[1768484586458,0.88558614,3374.2,3372.5,0.50620312]
[1768484586655,0.00281194,3374.4,3373.2,0.14826]
[1768484586959,3.16544301,3375.9,3373.6,0.50620312]
[1768484586960,0.72362888,3375.9,3373.6,0.50620312]
[1768484587257,0.19844301,3375.9,3374.4,0.65441312]
[1768484587453,0.19844301,3375.9,3374.6,0.50620312]
[1768484587757,0.52518587,3377.5,3375.3,0.50620312]
[1768484587956,0.52518587,3377.3,3375.3,0.50620312]
[1768484588263,1.41031044,3377.2,3376.1,0.00444536]
[1768484588459,0.88512457,3377.1,3376.1,0.00444536]
[1768484588660,0.52518587,3377.2,3376.1,0.00444536]
[1768484588847,0.52863211,3377.2,3376.1,0.0072239]
[1768484589953,0.52863211,3377.2,3374.8,0.50620312]
[1768484589954,0.52518587,3377.1,3374.8,0.50620312]
[1768484590159,0.15153624,3377.2,2940.4,6.93009642]
[1768484590160,0.52518587,3376.4,3374.3,0.50620312]
[1768484591058,0.52518587,3375.6,3374.3,0.00306279]
[1768484591253,0.00440044,3375.7,3374.3,0.00306279]
[1768484592052,0.00440044,3375.7,3374.3,0.50926591]
[1768484592247,0.00440044,3375.7,3374.7,0.00444536]
[1768484592647,0.52958631,3375.7,3374.3,0.00306279]
[1768484593153,0.52518587,3375.5,3374.3,0.00306279]
[1768484593347,0.52518587,3375.5,3373.3,0.14826]
[1768484593748,0.52518587,3375.5,3374.1,0.00444536]
[1768484594359,0.52518587,3375.2,3372.7,0.65449312]
[1768484595061,0.52518587,3375.2,3373.2,0.50620312]
[1768484595258,0.52518587,3375.7,3373.6,0.65445312]
[1768484595568,0.52963123,3375.0,3373.6,0.00281232]
[1768484597359,0.52963123,3375.0,3374.0,0.00444536]
[1768484597664,0.00444536,3375.0,3374.0,0.00444536]
[1768484598862,0.00444536,3375.0,3374.0,0.00318782]
[1768484599165,0.52963123,3375.0,3374.0,0.00318782]
[1768484602353,0.88579525,3374.9,3374.0,0.00318782]
[1768484602558,0.52963123,3375.0,3374.0,0.00318782]
[1768484602856,0.88579311,3374.9,3374.0,0.00318782]
[1768484603057,0.52963123,3375.0,3374.0,0.00318782]
[1768484603257,0.88579311,3374.9,3374.0,0.00318782]
[1768484603460,0.52963123,3375.0,3374.0,0.00318782]
[1768484603662,0.88643896,3374.9,3374.0,0.00318782]
[1768484603863,0.52963123,3375.0,3374.0,0.00318782]
[1768484604063,0.88642343,3374.9,3374.0,0.00318782]
[1768484604259,0.52963123,3375.0,3374.0,0.00318782]
[1768484604458,0.88599928,3374.9,3374.0,0.00318782]
[1768484604659,0.88599928,3374.8,3374.0,0.00318782]
[1768484604860,0.00342993,3374.8,3374.0,0.00318782]
[1768484606156,0.8865133,3374.7,3374.0,0.00318782]
[1768484606366,0.00342993,3374.8,3373.6,0.00281232]
[1768484606564,1.4041451,3374.7,3373.6,0.00281232]
[1768484606765,0.51706922,3374.7,3373.6,0.00281232]
[1768484607270,0.88719344,3374.6,3373.6,0.00281232]
[1768484607469,0.51706922,3374.7,3373.6,0.00281232]
[1768484607672,0.00342993,3374.8,3373.8,0.00300854]
[1768484609265,0.52049915,3374.8,3373.8,0.00300854]
[1768484610382,0.88770823,3374.7,3373.8,0.00300854]
[1768484610561,0.88770823,3374.7,3373.6,0.00281232]
[1768484610562,0.88782157,3374.6,3373.6,0.00281232]
[1768484610765,0.51706922,3374.4,3372.6,0.14829]
[1768484611074,0.51706922,3374.4,3372.7,0.14829]
[1768484611277,0.88825515,3374.3,3372.7,0.14829]
[1768484611471,0.51706922,3374.3,3372.0,0.14832]
[1768484611670,0.51706922,3373.9,3372.0,0.67048142]
[1768484611873,0.51706922,3373.9,3372.1,0.67047142]
[1768484611874,0.00444536,3373.5,3372.1,0.67047142]
[1768484612477,0.00444536,3373.5,3372.1,0.14831]
[1768484612671,0.00444536,3373.5,3372.0,0.00244669]
[1768484612862,0.51706922,3373.3,3372.0,0.00244669]
[1768484613068,0.51706922,3373.1,3372.0,0.00244669]
[1768484613270,1.40541336,3373.0,3372.0,0.00244669]
[1768484613470,1.229,3373.1,3372.0,0.00244669]
[1768484613670,0.88795186,3373.0,3372.0,0.00244669]
[1768484613873,1.229,3373.1,3372.0,0.00244669]
[1768484614076,1.4050186,3373.0,3372.0,0.00244669]
[1768484614276,1.4050186,3373.0,3371.4,0.14834]
[1768484614277,0.51706922,3373.0,3371.4,0.14834]
[1768484615161,0.51706922,3373.0,3371.4,0.15043522]
[1768484615363,0.51706922,3373.0,3371.4,0.00209522]
[1768484616761,1.229,3372.9,3371.4,0.00209522]
[1768484617369,0.51706922,3372.8,3371.4,0.00209522]
[1768484619482,2.3104204,3372.7,3370.5,0.52216142]
[1768484619684,4.71206922,3372.6,3370.5,0.52216142]
[1768484619981,0.51706922,3372.5,3370.5,0.52216142]
[1768484620585,0.51706922,3372.5,3370.6,0.14838]
[1768484621379,0.51706922,3372.3,3370.6,0.14838]
[1768484621679,0.00444536,3371.8,3370.6,0.14838]
[1768484629386,0.00444536,3371.8,3370.5,0.00281794]
[1768484631686,1.229,3371.7,3370.5,0.00281794]
[1768484634179,1.229,3371.7,3369.4,3.33614991]
[1768484634180,0.52470164,3371.6,3369.4,3.33614991]
[1768484634380,0.52470164,3371.6,3369.5,0.53387757]
[1768484635075,0.52470164,3371.6,3369.7,0.68229757]
[1768484635280,0.52470164,3371.6,3369.8,0.14842]
[1768484636385,0.88497762,3371.5,3369.8,0.14842]
[1768484636688,0.67304164,3371.6,3369.8,0.14842]
[1768484636883,0.88496687,3371.5,3369.8,0.14842]
[1768484637184,0.88525259,3371.4,3369.8,0.14842]
[1768484637383,0.67304164,3371.6,3369.8,0.14842]
[1768484637684,0.88525231,3371.5,3369.8,0.14842]
[1768484637889,0.52470164,3371.3,3369.8,0.14842]
[1768484638087,1.229,3371.2,3369.8,0.14842]
[1768484638288,0.52470164,3371.3,3369.8,0.14842]
[1768484638790,1.229,3371.2,3369.8,0.68229757]
[1768484640883,1.229,3371.3,3369.8,0.68229757]
[1768484641289,0.88866015,3371.2,3369.8,0.68229757]
[1768484641482,0.88855528,3371.1,3369.5,0.0025561]
[1768484641688,0.52470164,3371.0,3369.5,0.0025561]
[1768484643896,0.88912321,3370.9,3369.5,0.0025561]
[1768484644196,0.52470164,3371.0,3369.5,0.0025561]
[1768484644392,0.88919714,3370.9,3369.5,0.0025561]
[1768484644692,0.52470164,3371.4,3369.5,0.0025561]
[1768484644888,0.88917885,3371.3,3369.8,0.53387757]
[1768484645195,0.88917885,3371.2,3369.8,0.53387757]
[1768484645595,0.88917885,3371.1,3369.8,0.53387757]
[1768484645791,0.88917885,3371.0,3369.8,0.53387757]
[1768484646002,0.52470164,3371.4,3369.8,0.68229757]
[1768484646297,0.88928493,3371.3,3369.8,0.68229757]
[1768484646496,0.88928493,3371.2,3369.8,0.68229757]
[1768484646697,0.88928493,3371.1,3369.8,0.68229757]
[1768484646997,0.88928493,3371.0,3369.8,0.68229757]
[1768484647194,0.52470164,3371.4,3369.8,0.68229757]
[1768484647396,0.88975923,3371.3,3369.8,0.68229757]
[1768484647589,0.88975923,3371.2,3369.8,0.68229757]
[1768484647788,0.88975923,3371.1,3369.8,0.68229757]
[1768484647989,0.88975923,3371.0,3369.8,0.68229757]
[1768484648184,0.52470164,3371.4,3369.9,0.14841]
[1768484648385,0.88991288,3371.3,3369.9,0.14841]
[1768484648594,0.88991288,3371.2,3369.9,0.14841]
[1768484648789,0.88991288,3371.1,3369.9,0.14841]
[1768484648997,0.88991288,3371.0,3369.9,0.14841]
[1768484649201,1.229,3371.6,3369.9,0.14841]
[1768484649401,0.89008412,3371.5,3369.9,0.68228757]
[1768484649601,0.89008412,3371.4,3369.9,0.68228757]
[1768484649800,1.229,3371.6,3369.9,0.68228757]
[1768484649801,0.89008412,3371.3,3369.9,0.68228757]
[1768484650006,0.89008412,3371.2,3369.9,0.68228757]
[1768484650208,0.89008412,3371.1,3369.9,0.68228757]
[1768484650408,1.229,3371.6,3369.9,0.68228757]
[1768484650710,0.89021147,3371.5,3369.9,0.68228757]
[1768484650911,0.89021147,3371.4,3369.9,0.68228757]
[1768484651105,0.89021147,3371.3,3369.9,0.68228757]
[1768484651304,0.89021147,3371.2,3369.9,0.68228757]
[1768484651504,0.89021147,3371.1,3369.9,0.68228757]
[1768484651702,1.229,3371.6,3369.9,0.68228757]
[1768484651902,0.52470164,3371.4,3369.9,0.14841]
[1768484652109,0.52470164,3371.4,3369.5,0.0025561]
[1768484652110,0.52470164,3371.2,3369.5,0.0025561]
[1768484652302,1.41501172,3371.1,3369.5,0.0025561]
[1768484652505,0.89031008,3371.0,3369.5,0.0025561]
[1768484652705,0.52470164,3371.1,3369.5,0.53643367]
[1768484652905,0.89031301,3371.0,3369.8,0.53387757]
[1768484653105,0.14834,3371.5,3369.8,0.53387757]
[1768484653310,2.11839448,3371.4,3369.8,0.53387757]
[1768484653510,0.52470164,3371.2,3369.7,0.14842]
[1768484653712,0.52470164,3371.0,3369.7,0.14842]
[1768484653906,0.89039448,3370.9,3369.7,0.14842]
[1768484654213,0.52470164,3371.0,3369.7,0.14842]
[1768484654410,0.52470164,3370.8,3369.5,0.0025561]
[1768484654617,0.89044751,3370.7,3369.5,0.0025561]
[1768484654814,0.52470164,3370.8,3369.5,0.0025561]
[1768484655016,0.89045761,3370.7,3369.5,0.0025561]
[1768484655216,0.52470164,3370.8,3369.5,0.0025561]
[1768484655407,0.89055608,3370.7,3369.5,0.0025561]
[1768484655608,0.52470164,3370.8,3369.5,0.0025561]
[1768484655911,0.89055361,3370.7,3369.5,0.0025561]
[1768484656111,0.52470164,3370.8,3369.5,0.0025561]
[1768484656316,0.89075785,3370.7,3369.5,0.0025561]
[1768484656516,0.52470164,3370.8,3369.5,0.0025561]
[1768484656816,0.89073489,3370.7,3369.5,0.0025561]
[1768484657016,0.52470164,3370.8,3369.5,0.0025561]
[1768484657217,0.890734,3370.7,3369.5,0.0025561]
[1768484657418,0.52470164,3370.8,3369.5,0.0025561]
[1768484657619,0.89091886,3370.7,3369.5,0.0025561]
[1768484657814,0.52470164,3370.8,3369.5,0.0025561]
[1768484658116,0.89091966,3370.7,3369.5,0.0025561]
[1768484658315,0.52470164,3370.8,3369.5,0.0025561]
[1768484658620,0.89116607,3370.7,3369.5,0.0025561]
[1768484658810,0.52470164,3370.8,3369.5,0.0025561]
[1768484659005,0.89116645,3370.7,3369.5,0.0025561]
[1768484659209,0.89149614,3370.6,3369.5,0.0025561]
[1768484659410,0.52470164,3370.8,3369.5,0.0025561]
[1768484659610,0.89148628,3370.7,3369.5,0.0025561]
[1768484659814,0.89148628,3370.6,3369.5,0.0025561]
[1768484660015,0.52470164,3370.8,3369.5,0.0025561]
[1768484660216,0.8914848,3370.7,3369.5,0.0025561]
[1768484660416,0.8914848,3370.6,3369.5,0.0025561]
[1768484660618,0.52470164,3370.8,3369.5,0.0025561]
[1768484660918,0.89162109,3370.7,3369.5,0.0025561]
[1768484661120,0.89162109,3370.6,3369.5,0.0025561]
[1768484661321,0.52470164,3370.8,3369.5,0.0025561]
[1768484661513,0.89178925,3370.7,3369.5,0.0025561]
[1768484661714,0.89178925,3370.6,3369.5,0.0025561]
[1768484661914,0.56851153,3370.7,3369.5,0.0025561]
[1768484662123,0.89179958,3370.6,3369.5,0.0025561]
[1768484662323,0.56851153,3370.7,3369.5,0.0025561]
[1768484662623,0.89202892,3370.6,3369.5,0.0025561]
[1768484662821,0.56851153,3370.7,3369.5,0.0025561]
[1768484663023,0.89202888,3370.6,3369.5,0.0025561]
[1768484663223,0.56851153,3370.7,3369.5,0.0025561]
[1768484663421,0.56851153,3370.5,3369.5,0.0025561]
[1768484670930,0.14837,3370.9,3369.5,0.0025561]
[1768484671131,2.11903671,3370.8,3369.5,0.0025561]
[1768484671329,0.89103671,3370.7,3369.5,0.0025561]
[1768484671531,0.89103392,3370.6,3369.5,0.0025561]
[1768484671731,1.81444171,3370.8,3369.5,0.0025561]
[1768484672033,0.891035,3370.7,3369.5,0.0025561]
[1768484672230,1.81444171,3370.8,3369.5,0.0025561]
[1768484672431,1.47745372,3370.7,3369.5,0.0025561]
[1768484672628,0.58644171,3370.6,3369.5,0.0025561]
[1768484677030,1.81444171,3370.6,3369.5,0.0025561]
[1768484679933,0.58644171,3370.6,3369.5,0.0025561]
[1768484680242,1.81444171,3370.6,3369.5,0.0025561]